bitfinex-derivatives/quotes_ETHF0:USTF0_20260204
["timestamp","ask_amount","ask_price","bid_price","bid_amount"]
[1770170735780,1.26737942,2266.0,2265.1,0.16664149]
[1770170736783,1.071,2266.0,2265.1,0.16664149]
[1770170738590,0.863,2266.1,2265.1,0.16664149]
[1770170739593,1.41830942,2266.4,2265.1,0.16664149]
[1770170739891,1.037,2266.4,2265.2,0.16147149]
[1770170742490,1.19737942,2266.4,2265.2,0.16147149]
[1770170743190,0.16037942,2266.3,2265.2,0.16147149]
[1770170744088,0.16037942,2266.9,2265.5,0.16147149]
[1770170744289,0.16037942,2266.9,2265.7,0.16147149]
[1770170751202,0.15533478,2266.8,2265.5,0.1579046]
[1770170751599,0.15533478,2266.6,2265.5,0.1579046]
[1770170752497,0.15533478,2266.5,2265.5,0.1579046]
[1770170754707,0.15533478,2266.5,2265.3,0.1579046]
[1770170755504,10.98478084,2266.9,2265.4,2.79175356]
[1770170755705,0.863,2266.8,2265.5,0.15178878]
[1770170755910,1.459,2266.8,2265.6,0.15178878]
[1770170756210,1.61967231,2266.8,2265.6,0.15178878]
[1770170756705,0.16067231,2266.8,2265.6,0.15178878]
[1770170756908,6.56778084,2267.1,2265.7,0.15178878]
[1770170757113,4.417,2267.5,2266.6,0.15178878]
[1770170757308,4.40848521,2267.5,2266.7,0.15178878]
[1770170757912,4.5765278,2268.3,2266.8,0.15178878]
[1770170758108,0.863,2268.2,2266.9,0.15178878]
[1770170759015,0.00478848,2268.3,2267.3,0.37262878]
[1770170759214,0.16063439,2268.9,2267.5,0.15178878]
[1770170759807,0.16542287,2269.2,2267.5,0.15178878]
[1770170760012,0.863,2269.1,2267.7,0.15178878]
[1770170760216,0.86663101,2269.1,2267.7,0.15178878]
[1770170760415,0.00363101,2269.1,2267.7,0.15178878]
[1770170761517,0.16962795,2269.1,2267.7,0.15178878]
[1770170761818,0.16962795,2269.1,2267.2,0.15178878]
[1770170761819,0.16599694,2268.6,2267.2,0.15178878]
[1770170763317,0.16597016,2268.4,2267.2,0.15178878]
[1770170763617,0.16597016,2268.3,2267.2,0.15178878]
[1770170764117,4.58097016,2269.0,2267.3,0.15178878]
[1770170764316,0.16597016,2268.8,2267.3,0.15178878]
[1770170765010,0.17006451,2269.1,2267.6,0.15178878]
[1770170765609,0.17006451,2269.1,2267.7,0.15178878]
[1770170767716,0.16642577,2268.9,2267.1,0.15178878]
[1770170768018,0.16642577,2268.8,2267.1,0.15178878]
[1770170768218,0.16642577,2268.7,2267.1,0.15178878]
[1770170768413,0.16642577,2268.5,2267.1,0.15178878]
[1770170768617,0.16642577,2268.4,2267.1,0.15178878]
[1770170769815,1.08373,2268.5,2266.8,0.00380431]
[1770170769816,0.16557233,2268.2,2266.8,0.15559309]
[1770170770015,0.16557233,2267.5,2266.8,0.00380431]
[1770170770321,0.16176802,2267.3,2265.9,0.15178878]
[1770170771221,0.16647939,2267.3,2265.9,0.15640128]
[1770170772115,0.863,2267.2,2265.9,0.15640128]
[1770170772415,5.277,2267.2,2265.9,0.15640128]
[1770170772617,0.15427916,2267.1,2265.9,0.15640128]
[1770170774119,5.277,2267.0,2265.9,0.15640128]
[1770170774326,0.863,2267.0,2265.9,0.15640128]
[1770170774922,0.15909917,2266.9,2265.9,0.15640128]
[1770170777314,0.863,2267.0,2265.9,0.15640128]
[1770170778220,0.15931403,2267.2,2265.9,0.15640128]
[1770170778520,0.00471137,2267.3,2265.9,0.15640128]
[1770170778720,0.00471137,2267.3,2266.0,0.37274878]
[1770170778922,0.00471137,2267.3,2266.3,0.15178878]
[1770170779320,0.00471137,2267.3,2266.4,0.15178878]
[1770170779721,0.15973815,2268.1,2266.7,0.15178878]
[1770170780820,0.16388943,2268.1,2266.7,0.15178878]
[1770170781418,0.00415128,2268.1,2266.7,0.15178878]
[1770170781723,0.00415128,2268.1,2266.7,0.37267878]
[1770170781923,0.00415128,2268.1,2266.8,0.15941773]
[1770170782925,0.00415128,2268.1,2266.9,0.15941773]
[1770170783328,0.15846788,2268.1,2266.9,0.15941773]
[1770170784121,0.00415128,2268.1,2266.9,0.15941773]
[1770170785321,0.00415128,2268.1,2267.1,0.15941773]
[1770170786530,0.00415128,2268.1,2267.3,0.15941773]
[1770170787228,0.00415128,2268.1,2267.3,0.38025773]
[1770170787428,0.00415128,2268.1,2267.4,0.15941773]
[1770170787628,0.00415128,2268.1,2267.4,0.38024773]
[1770170787928,1.0173166,2268.8,2267.6,0.15941773]
[1770170788822,1.02168888,2268.8,2267.6,0.16338179]
[1770170789422,0.1543166,2268.7,2267.6,0.16338179]
[1770170789630,0.1543166,2268.6,2267.6,0.16338179]
[1770170790030,0.86737228,2268.8,2267.7,0.15941773]
[1770170790330,0.86737228,2268.8,2267.8,0.15941773]
[1770170791521,0.1543166,2269.8,2267.9,0.15941773]
[1770170791722,0.1543166,2270.1,2268.7,0.15941773]
[1770170791931,0.1543166,2270.1,2268.8,0.15941773]
[1770170792628,0.15795566,2270.1,2268.8,0.15941773]
[1770170795426,0.00363906,2270.1,2268.9,0.15941773]
[1770170795823,0.00363906,2270.1,2269.0,0.15941773]
[1770170796528,0.00363906,2270.1,2269.2,0.15941773]
[1770170796723,0.00363906,2270.1,2269.3,2.43841606]
[1770170796927,0.00363906,2270.1,2269.4,0.15941773]
[1770170797822,0.1543166,2270.7,2269.4,0.15941773]
[1770170798026,0.862,2270.8,2269.4,0.15941773]
[1770170798330,0.862,2270.8,2269.7,0.15941773]
[1770170798526,0.1543166,2271.3,2270.0,0.22058]
[1770170798728,0.15979194,2271.3,2270.1,0.15941773]
[1770170798924,0.00547534,2271.3,2270.2,0.15941773]
[1770170799530,0.15979194,2271.3,2270.3,0.15941773]
[1770170800030,0.15979194,2271.3,2269.8,0.15941773]
[1770170801735,0.15979194,2271.3,2269.9,0.15941773]
[1770170801930,0.15979194,2271.3,2270.1,0.15941773]
[1770170805131,0.15979194,2271.3,2269.6,0.15941773]
[1770170805132,0.1543166,2271.2,2269.6,0.15941773]
[1770170805332,0.1543166,2271.2,2269.7,0.15941773]
[1770170805733,0.1543166,2271.2,2269.8,0.15941773]
[1770170807836,0.1543166,2271.1,2269.8,0.15941773]
[1770170808031,0.3747866,2271.1,2269.8,0.15941773]
[1770170808237,0.1543166,2271.0,2269.8,0.15941773]
[1770170808936,0.22047,2271.1,2269.8,0.15941773]
[1770170809336,1.0163166,2271.2,2269.8,0.15941773]
[1770170812839,0.16263814,2271.1,2269.8,0.15941773]
[1770170814239,0.862,2271.2,2269.9,0.16533757]
[1770170814542,0.00547534,2271.3,2270.2,0.16533757]
[1770170816141,0.00547534,2271.3,2270.4,0.15460399]
[1770170817142,0.00547534,2271.3,2270.4,0.37514399]
[1770170817342,0.00547534,2271.3,2270.5,0.15460399]
[1770170823647,0.00547534,2271.3,2270.6,0.15460399]
[1770170824447,6.68577866,2272.1,2270.9,0.15460399]
[1770170824645,0.15425434,2272.2,2271.1,0.15460399]
[1770170825541,0.15844658,2272.2,2271.1,0.15795973]
[1770170825748,0.00419224,2272.2,2271.3,0.15460399]
[1770170825941,14.32350168,2273.1,2271.9,0.37499399]
[1770170826249,0.15425434,2273.5,2272.2,0.15460399]
[1770170826747,0.15425434,2273.7,2272.3,0.15460399]
[1770170827342,7.39252432,2273.8,2272.4,0.37494399]
[1770170827543,7.39252432,2273.8,2272.5,0.15460399]
[1770170827745,0.15425434,2273.7,2272.5,0.15460399]
[1770170828449,0.00395325,2273.7,2272.6,0.15460399]
[1770170828648,0.15820759,2273.7,2272.6,0.15460399]
[1770170829647,0.00395325,2273.7,2272.6,0.15460399]
[1770170830651,0.00395325,2273.7,2272.7,0.15460399]
[1770170830853,9.57562909,2274.0,2273.1,0.15460399]
[1770170831052,15.4490658,2274.2,2273.1,0.37488399]
[1770170831253,1.417,2274.6,2273.2,0.15460399]
[1770170831649,1.417,2274.6,2273.5,0.15460399]
[1770170831855,1.42186407,2274.6,2273.5,0.15460399]
[1770170832056,0.00486407,2274.6,2273.5,0.15460399]
[1770170833250,0.22500407,2274.6,2273.2,0.15460399]
[1770170833555,0.15425434,2274.5,2273.2,0.15460399]
[1770170833852,0.00486407,2274.6,2273.3,0.37486399]
[1770170834050,0.00486407,2274.6,2273.5,0.37484399]
[1770170834356,0.15911841,2274.6,2273.6,0.15460399]
[1770170834550,0.15911841,2274.6,2273.0,0.15460399]
[1770170834954,0.15911841,2274.6,2273.1,0.15460399]
[1770170835656,0.00486407,2274.6,2273.2,0.37486399]
[1770170835852,0.00486407,2274.6,2273.3,0.15460399]
[1770170836352,0.00486407,2274.6,2273.3,0.37485399]
[1770170836554,0.00486407,2274.6,2273.4,0.15460399]
[1770170837152,0.00486407,2274.6,2273.6,0.15460399]
[1770170839258,0.15911841,2274.6,2273.6,0.15460399]
[1770170839651,0.15911841,2274.6,2273.3,0.15460399]
[1770170841050,0.00486407,2274.6,2273.3,0.15460399]
[1770170842353,0.16743039,2274.6,2273.5,0.16279266]
[1770170843553,0.38757039,2274.6,2273.5,0.16279266]
[1770170843950,0.16256632,2274.3,2273.2,0.16279266]
[1770170844154,1.02256632,2274.3,2273.2,0.16279266]
[1770170844354,0.86,2274.3,2273.2,0.16279266]
[1770170846455,0.38273632,2274.2,2272.9,0.16279266]
[1770170846658,0.16256632,2274.1,2272.9,0.16279266]
[1770170846959,0.16256632,2274.0,2272.9,0.16279266]
[1770170847159,0.16256632,2273.7,2272.7,0.0051213]
[1770170847455,0.16256632,2273.7,2272.7,0.16791396]
[1770170847657,0.16256632,2274.0,2272.7,0.16791396]
[1770170849150,0.16256632,2273.8,2272.7,0.0051213]
[1770170849351,0.16256632,2273.6,2272.7,0.0051213]
[1770170851464,0.16256632,2273.6,2272.7,0.16791396]
[1770170851762,1.02256632,2273.8,2272.7,0.16791396]
[1770170852060,0.16256632,2273.7,2272.7,0.0051213]
[1770170852460,1.08021,2273.8,2272.7,0.16791396]
[1770170852756,0.16256632,2273.7,2272.7,0.0051213]
[1770170852960,0.16256632,2273.0,2271.9,0.16279266]
[1770170853263,0.16256632,2272.8,2271.5,0.16279266]
[1770170853466,1.02256632,2272.9,2271.5,0.16279266]
[1770170853663,0.86,2272.9,2271.6,0.16279266]
[1770170853859,0.86,2272.9,2271.8,0.16279266]
[1770170854158,0.16659081,2272.9,2272.0,0.16279266]
[1770170854362,0.00402449,2272.9,2272.0,0.16279266]
[1770170855564,0.16140663,2273.7,2272.2,0.16279266]
[1770170855959,0.16140663,2273.6,2272.2,0.16279266]
[1770170856661,0.1665415,2273.6,2272.2,0.16279266]
[1770170857165,0.16232996,2273.4,2272.2,0.16279266]
[1770170858360,0.00513487,2273.6,2272.2,0.16279266]
[1770170858557,0.16746483,2273.6,2272.2,0.16279266]
[1770170859566,0.16746483,2273.6,2272.3,0.16279266]
[1770170861366,0.00513487,2273.6,2272.4,0.16279266]
[1770170862560,0.16770119,2273.6,2272.4,0.16279266]
[1770170865364,0.16256632,2273.4,2272.1,0.16279266]
[1770170866169,0.16256632,2273.3,2272.1,0.16279266]
[1770170867664,0.22025,2273.4,2272.1,0.16279266]
[1770170867869,1.02770119,2273.6,2272.2,0.16279266]
[1770170868071,0.86513487,2273.6,2272.2,0.16279266]
[1770170868270,0.16256632,2273.5,2272.2,0.16279266]
[1770170870069,0.16256632,2273.4,2272.2,0.16279266]
[1770170870271,0.16256632,2273.3,2272.2,0.16279266]
[1770170871070,0.22027,2273.2,2272.2,0.16279266]
[1770170871271,0.15906449,2273.0,2271.9,0.16627903]
[1770170871675,0.15906449,2272.9,2271.9,0.16627903]
[1770170872075,0.22029,2273.0,2271.9,0.16627903]
[1770170872470,0.37935449,2273.0,2271.9,0.16627903]
[1770170872772,6.65067657,2273.3,2271.9,0.16627903]
[1770170872975,0.15906449,2273.3,2271.9,0.16627903]
[1770170873274,0.15906449,2273.2,2271.9,0.16627903]
[1770170873973,0.22025,2273.4,2271.9,0.16627903]
[1770170873974,0.22025,2273.4,2272.1,0.16627903]
[1770170874576,1.55406449,2273.5,2272.1,0.16627903]
[1770170874876,0.15906449,2273.4,2272.1,0.16627903]
[1770170875076,0.15906449,2273.0,2272.1,0.16627903]
[1770170876578,0.22028,2273.1,2272.1,0.16627903]
[1770170879980,6.49161208,2273.2,2272.1,0.16627903]
[1770170880379,6.49161208,2273.4,2272.1,0.16627903]
[1770170880583,6.49161208,2273.4,2272.2,0.16342954]
[1770170880982,6.65179119,2273.4,2272.2,0.16342954]
[1770170881284,0.16017911,2273.2,2272.0,0.16342954]
[1770170881879,9.18532459,2273.5,2271.8,0.00308395]
[1770170881880,0.22032,2272.7,2271.8,0.00308395]
[1770170882083,0.16017911,2272.6,2271.8,0.00308395]
[1770170882279,0.16017911,2272.6,2271.8,0.16651349]
[1770170882479,1.08132,2272.7,2271.8,0.16651349]
[1770170882677,0.16017911,2272.6,2271.8,0.16651349]
[1770170883684,0.38050911,2272.6,2271.8,0.00308395]
[1770170883885,0.22033,2272.6,2271.8,0.16651349]
[1770170885686,0.38050911,2272.6,2271.8,0.16651349]
[1770170888684,0.16017911,2272.5,2271.8,0.00308395]
[1770170890490,9.62416828,2273.1,2272.1,0.16342954]
[1770170890696,0.00513487,2273.6,2272.5,3.00208401]
[1770170890887,10.89561208,2274.1,2272.9,0.16342954]
[1770170890888,4.404,2274.1,2272.9,0.16342954]
[1770170891192,4.404,2274.1,2273.1,0.16342954]
[1770170891695,4.404,2274.1,2273.2,0.16342954]
[1770170891993,4.40940986,2274.1,2273.2,0.16342954]
[1770170892390,1.093,2274.6,2273.3,0.16342954]
[1770170893096,1.093,2274.6,2273.5,0.16342954]
[1770170893594,1.09866209,2274.6,2273.5,0.16820476]
[1770170894191,0.16017911,2274.5,2273.5,0.16820476]
[1770170894387,0.16017911,2274.5,2273.5,0.00477522]
[1770170895194,0.16017911,2274.5,2273.5,0.16820476]
[1770170897098,1.09866209,2274.6,2273.5,0.16820476]
[1770170898199,0.16017911,2274.5,2273.5,0.16820476]
[1770170898494,0.16017911,2274.5,2273.5,0.00477522]
[1770170898798,0.00566209,2274.6,2273.5,0.16820476]
[1770170900794,0.00566209,2274.6,2273.6,1.23667092]
[1770170901000,0.00566209,2274.6,2273.7,0.15644092]
[1770170902397,0.00566209,2274.6,2273.7,0.37666092]
[1770170902602,0.00566209,2274.6,2273.8,0.15644092]
[1770170903905,0.15215908,2275.7,2274.5,0.15644092]
[1770170904300,0.22196456,2276.2,2275.3,0.15644092]
[1770170904506,0.22196456,2276.2,2275.5,0.15644092]
[1770170904798,0.22516361,2276.2,2275.5,0.1614976]
[1770170905500,0.22516361,2276.2,2275.5,0.00505668]
[1770170907406,0.22516361,2276.2,2275.5,0.1614976]
[1770170909306,0.22516361,2276.2,2275.5,0.00505668]
[1770170909508,0.15215908,2276.1,2275.5,0.00505668]
[1770170910602,0.15215908,2276.1,2274.9,0.15644092]
[1770170911207,0.15215908,2276.1,2274.6,0.37656092]
[1770170911607,0.15215908,2276.1,2274.7,0.15644092]
[1770170912107,0.22,2276.0,2274.7,0.15644092]
[1770170912306,0.15215908,2275.9,2274.6,0.00512373]
[1770170913303,0.15215908,2275.7,2274.6,0.16156465]
[1770170914206,0.15215908,2275.7,2274.6,0.00512373]
[1770170914704,0.22007,2275.3,2273.9,0.15644092]
[1770170914907,0.15215908,2275.1,2273.9,0.15644092]
[1770170915606,0.15215908,2275.1,2273.9,0.16119178]
[1770170922313,0.86,2275.2,2274.1,0.15644092]
[1770170922512,6.49161208,2276.0,2274.4,0.15644092]
[1770170922711,0.37732269,2276.2,2274.9,0.15644092]
[1770170922911,0.15215908,2276.1,2274.9,0.15644092]
[1770170924916,0.15215908,2276.1,2274.5,0.15644092]
[1770170927119,0.15215908,2276.0,2274.5,0.15644092]
[1770170928519,0.15215908,2275.8,2274.5,0.15644092]
[1770170928821,0.15215908,2275.7,2274.2,0.15644092]
[1770170929020,0.15215908,2275.6,2274.2,0.15644092]
[1770170930119,0.15215908,2275.5,2274.2,0.15644092]
[1770170930615,0.15815285,2275.3,2274.2,0.15644092]
[1770170932823,5.47906,2275.4,2274.2,0.15644092]
[1770170934822,0.15815285,2275.3,2274.2,0.15644092]
[1770170935224,5.47906,2275.4,2274.2,0.15644092]
[1770170935420,5.259,2275.4,2274.2,0.15644092]
[1770170935625,4.399,2275.4,2274.3,0.15712982]
[1770170936527,0.16342864,2275.7,2274.4,0.15712982]
[1770170937727,0.86,2275.9,2274.5,0.15712982]
[1770170938027,0.86,2275.9,2274.6,0.15712982]
[1770170938222,0.16342864,2276.0,2274.7,0.15712982]
[1770170938925,0.16342864,2275.6,2274.4,0.15712982]
[1770170939122,0.16342864,2275.4,2274.4,0.15712982]
[1770170939623,0.16342864,2275.3,2274.1,0.15712982]
[1770170940227,0.16342864,2275.2,2274.1,0.15712982]
[1770170940428,0.16342864,2275.1,2274.1,0.15712982]
[1770170941130,0.16342864,2274.9,2273.9,0.00475086]
[1770170941831,0.16342864,2274.8,2273.9,0.00475086]
[1770170942132,0.16342864,2275.1,2273.9,0.16188068]
[1770170942626,4.399,2275.2,2273.9,0.16188068]
[1770170942828,4.399,2275.2,2274.0,0.15712982]
[1770170943024,4.56242864,2275.2,2274.0,0.15712982]
[1770170943229,0.16342864,2275.1,2274.0,0.15712982]
[1770170944129,4.399,2275.2,2274.0,0.15712982]
[1770170944930,0.16342864,2275.1,2274.0,0.15712982]
[1770170946942,4.399,2275.2,2274.0,0.15712982]
[1770170947938,4.399,2275.2,2274.1,0.15712982]
[1770170948140,4.399,2275.2,2274.2,0.15712982]
[1770170949345,0.16342864,2275.8,2274.4,0.15712982]
[1770170949541,6.49161208,2276.9,2275.4,0.15712982]
[1770170949742,0.16342864,2276.6,2275.1,0.15712982]
[1770170950043,0.16342864,2276.3,2275.1,0.15712982]
[1770170950248,0.16342864,2276.1,2275.1,0.15712982]
[1770170950438,0.38859378,2276.1,2275.1,0.15712982]
[1770170950642,0.22516514,2275.9,2275.1,0.15712982]
[1770170951036,0.22516514,2275.8,2275.1,0.15712982]
[1770170951245,0.39341867,2276.1,2275.1,0.15712982]
[1770170951441,0.22999003,2276.1,2275.1,0.15712982]
[1770170951642,0.00482489,2276.1,2275.1,0.15712982]
[1770170952343,0.39341867,2276.1,2275.1,0.15712982]
[1770170952543,0.38859378,2276.0,2275.1,0.15712982]
[1770170953146,0.22516514,2275.9,2275.1,0.15712982]
[1770170956440,0.22516514,2275.7,2274.8,0.15712982]
[1770170956644,0.16342864,2276.0,2274.8,0.15712982]
[1770170956845,0.38859378,2275.9,2274.8,0.15712982]
[1770170957046,0.16342864,2275.9,2274.8,0.15712982]
[1770170957242,0.38859378,2275.8,2274.8,0.15712982]
[1770170957445,0.16342864,2275.8,2274.8,0.15712982]
[1770170957641,0.16342864,2275.7,2274.8,0.15712982]
[1770170957842,0.22516514,2275.6,2274.8,0.15712982]
[1770170958046,0.22516514,2275.5,2274.8,0.15712982]
[1770170958450,0.22516514,2275.4,2274.5,0.15712982]
[1770170958650,0.16342864,2275.5,2274.5,0.15712982]
[1770170959246,0.86,2275.8,2274.5,0.15712982]
[1770170959545,0.86,2275.8,2274.6,0.15712982]
[1770170960847,0.16038589,2276.1,2274.6,0.15712982]
[1770170961441,0.38072614,2276.0,2274.8,0.15492634]
[1770170961650,0.155561,2275.9,2274.8,0.15492634]
[1770170961850,0.155561,2275.8,2274.8,0.15492634]
[1770170962047,0.38072614,2275.8,2274.8,0.15492634]
[1770170962248,0.22516514,2275.7,2274.8,0.15492634]
[1770170964251,0.155561,2275.6,2274.8,0.15492634]
[1770170964452,0.155561,2275.5,2274.4,0.15492634]
[1770170964854,0.22516514,2275.2,2274.4,0.15492634]
[1770170965054,0.38072614,2275.3,2274.4,0.15492634]
[1770170965248,0.22516514,2275.1,2274.4,0.15492634]
[1770170965649,0.22516514,2275.0,2274.4,0.15492634]
[1770170965852,0.22516514,2275.1,2274.4,0.15492634]
[1770170966149,5.259,2275.6,2274.4,0.15492634]
[1770170966150,5.414561,2275.6,2274.4,0.15492634]
[1770170966452,0.22516514,2275.5,2274.4,0.15492634]
[1770170966644,0.155561,2275.4,2274.4,0.15492634]
[1770170966850,0.155561,2275.2,2274.4,0.15492634]
[1770170967048,0.155561,2275.2,2274.2,0.86]
[1770170967049,0.155561,2275.9,2275.0,0.22009]
[1770170967350,0.00482489,2276.1,2274.9,3.46000439]
[1770170967548,4.399,2276.5,2275.5,0.22004]
[1770170967752,4.399,2276.5,2275.5,1.08004]
[1770170968153,0.155561,2276.4,2275.1,3.46000439]
[1770170968353,0.155561,2276.4,2275.2,0.22007]
[1770170968553,0.15904312,2276.4,2275.2,0.22490186]
[1770170968854,0.21598333,2276.4,2275.2,1.08490186]
[1770170969055,0.155561,2276.0,2275.2,0.00483186]
[1770170969348,0.155561,2276.1,2275.2,0.1597582]
[1770170969552,0.155561,2276.0,2275.2,0.00483186]
[1770170969749,0.21250121,2275.9,2275.2,0.00483186]
[1770170969954,0.155561,2275.9,2275.2,0.00483186]
[1770170970150,0.05694021,2275.8,2275.2,0.00483186]
[1770170971455,0.21250121,2275.6,2275.2,0.00483186]
[1770170971654,0.155561,2275.6,2275.2,0.00483186]
[1770170971856,0.05694021,2275.5,2275.2,0.00483186]
[1770170972357,0.05694021,2275.4,2275.2,0.00483186]
[1770170972556,0.21250121,2275.4,2274.9,4.399]
[1770170973655,0.21250121,2275.4,2274.9,4.40246126]
[1770170974055,0.155561,2274.9,2274.2,2.60000439]
[1770170974256,0.155561,2274.9,2273.7,0.22022]
[1770170974257,0.155561,2274.9,2273.7,2.97515073]
[1770170974455,0.155561,2275.3,2273.9,0.15492634]
[1770170974757,0.155561,2275.3,2274.2,0.15492634]
[1770170975159,0.21250121,2275.3,2274.2,0.15913721]
[1770170975659,0.05694021,2275.2,2274.2,0.15913721]
[1770170975858,0.21250121,2275.2,2274.2,0.15913721]
[1770170976060,0.86,2275.7,2274.2,0.00421087]
[1770170976061,0.21250121,2274.9,2274.2,0.00421087]
[1770170976257,0.155561,2274.9,2274.2,0.00421087]
[1770170976457,0.21250121,2274.7,2274.2,0.00421087]
[1770170976759,0.155561,2274.6,2273.6,3.83516073]
[1770170976956,0.16088316,2274.7,2273.8,0.22021]
[1770170977460,0.05694021,2274.6,2273.8,0.37513634]
[1770170977655,0.00532216,2274.7,2273.9,0.15492634]
[1770170977855,0.00532216,2274.7,2273.9,0.1592044]
[1770170980062,0.00532216,2274.7,2274.0,0.15492634]
[1770170981160,0.05694021,2274.5,2273.9,0.00427806]
[1770170981561,0.05694021,2274.4,2273.9,0.1592044]
[1770170981760,0.155561,2274.2,2273.9,0.00427806]
[1770170982062,0.21250121,2274.2,2273.5,0.86]
[1770170982263,0.05694021,2274.0,2273.5,0.86]
[1770170982561,0.05694021,2274.2,2273.6,0.15492634]
[1770170982758,0.05694021,2274.1,2273.5,0.86]
[1770170982956,0.155561,2274.3,2273.5,0.86507434]
[1770170983159,0.05694021,2274.2,2273.5,0.86507434]
[1770170983562,0.05694021,2274.1,2273.5,0.86507434]
[1770170983860,0.05694021,2274.2,2273.5,0.86507434]
[1770170984261,0.21250121,2274.0,2273.5,0.86507434]
[1770170984565,0.21250121,2273.9,2273.2,0.22027]
[1770170984859,0.155561,2273.8,2272.8,2.75493073]
[1770170985167,0.155561,2273.8,2272.7,0.15492634]
[1770170985460,0.21250121,2273.5,2272.7,0.00550603]
[1770170985661,0.05694021,2273.4,2272.7,0.00550603]
[1770170986064,0.05694021,2273.3,2272.7,0.00550603]
[1770170986264,0.05694021,2273.4,2272.7,0.00550603]
[1770170986465,0.05694021,2273.3,2272.7,0.00550603]
[1770170986858,0.155561,2273.0,2272.7,0.00550603]
[1770170987058,0.00561153,2273.0,2272.3,1.31329447]
[1770170987359,0.16117253,2273.0,2272.3,1.15836813]
[1770170987555,0.05694021,2272.8,2272.3,1.15836813]
[1770170987962,0.05694021,2272.7,2272.3,1.16147992]
[1770170988162,0.05694021,2272.8,2272.3,1.16147992]
[1770170988664,0.05694021,2272.7,2272.3,1.16147992]
[1770170988866,0.05694021,2272.8,2272.3,1.16147992]
[1770170989263,0.05694021,2272.7,2272.3,1.16147992]
[1770170989465,0.05694021,2272.8,2272.3,1.16147992]
[1770170989665,0.05694021,2272.7,2272.3,1.16147992]
[1770170990167,0.16117253,2273.0,2272.3,1.16147992]
[1770170990168,0.05694021,2272.6,2272.3,1.16147992]
[1770170990367,0.05694021,2272.7,2272.3,1.16147992]
[1770170990968,0.05694021,2272.5,2272.3,1.16147992]
[1770170991269,0.05694021,2272.7,2272.3,1.16147992]
[1770170991469,0.05694021,2272.5,2272.3,1.16147992]
[1770170991766,0.05694021,2272.7,2272.3,1.16147992]
[1770170991966,0.00561153,2273.0,2272.3,1.31462354]
[1770170992168,0.16765358,2273.0,2272.3,1.16147992]
[1770170992567,0.16765358,2273.0,2272.3,0.00311179]
[1770170992868,0.16204205,2272.8,2271.2,0.22046]
[1770170993169,0.16204205,2272.7,2271.2,0.31683991]
[1770170993368,0.16204205,2272.7,2271.3,0.09637991]
[1770170993765,0.16204205,2272.7,2271.3,0.00496906]
[1770170994065,0.16204205,2272.7,2271.3,0.22541906]
[1770170995872,0.16693389,2272.6,2271.3,0.00496906]
[1770170997368,0.16693389,2272.6,2271.3,0.10174984]
[1770171000071,0.16693389,2272.6,2271.3,0.00496906]
[1770171000574,4.401,2272.9,2270.6,0.32145112]
[1770171000575,0.16693389,2272.2,2270.6,0.32145112]
[1770171000768,0.16693389,2272.0,2270.6,0.22052]
[1770171000967,0.16693389,2272.0,2270.6,0.32145112]
[1770171001269,0.16693389,2272.0,2270.7,0.10093112]
[1770171001462,0.16693389,2272.0,2270.4,0.10093112]
[1770171001667,0.16693389,2271.7,2270.4,0.10600979]
[1770171002267,0.16693389,2271.7,2270.4,0.00507867]
[1770171002467,0.16693389,2271.7,2270.8,0.10093112]
[1770171002672,0.16693389,2272.3,2270.8,0.10093112]
[1770171003064,0.16693389,2272.3,2270.8,0.32143112]
[1770171003370,0.16693389,2272.3,2271.0,0.1010175]
[1770171003565,0.16693389,2272.3,2271.3,0.1010175]
[1770171004172,0.16693389,2272.6,2271.5,0.1010175]
[1770171004372,0.16693389,2272.9,2271.7,0.1010175]
[1770171004773,0.16693389,2272.9,2271.8,0.10157185]
[1770171005773,0.16693389,2272.9,2271.7,0.22041]
[1770171005970,0.16693389,2272.9,2271.7,0.32198185]
[1770171006177,0.16693389,2272.9,2271.8,0.10157185]
[1770171008471,0.00561153,2273.0,2272.4,0.22034]
[1770171008668,0.16693389,2273.9,2272.5,0.22034]
[1770171008869,0.16693389,2273.9,2272.7,0.32054041]
[1770171009073,0.16693389,2273.9,2272.7,0.22031]
[1770171009777,0.17177155,2273.9,2272.7,0.22031]
[1770171010475,0.17177155,2273.9,2272.4,0.1041324]
[1770171011576,0.17177155,2273.9,2272.4,0.3244724]
[1770171011987,0.17177155,2273.9,2272.4,0.22424199]
[1770171012376,0.17177155,2273.9,2272.4,0.32418844]
[1770171012679,0.17177155,2273.9,2272.5,0.09994645]
[1770171012880,0.17177155,2273.9,2272.8,0.09985399]
[1770171013580,0.17177155,2273.9,2272.9,0.2203]
[1770171013781,0.17177155,2273.9,2272.5,0.09985399]
[1770171014180,0.16693389,2273.8,2272.4,0.00390199]
[1770171014376,0.16693389,2273.7,2272.4,0.00390199]
[1770171018578,0.16693389,2273.7,2272.4,0.10831796]
[1770171018776,0.16693389,2273.7,2272.4,0.00390199]
[1770171023792,0.16693389,2273.7,2272.4,0.10811527]
[1770171024683,0.16693389,2273.7,2272.4,0.00390199]
[1770171031886,0.16693389,2273.7,2272.5,0.10320301]
[1770171032186,0.16693389,2273.7,2272.4,0.22425199]
[1770171032583,0.16693389,2273.7,2272.8,0.10320301]
[1770171032783,0.00483766,2273.9,2272.9,0.10424683]
[1770171032982,0.15949559,2273.8,2272.8,0.2203]
[1770171033187,0.15949559,2273.8,2272.9,0.10424683]
[1770171035190,0.15949559,2273.8,2272.8,2.82751409]
[1770171035390,0.15949559,2273.8,2272.8,2.92889488]
[1770171036190,0.15949559,2273.8,2272.8,4.42629543]
[1770171036490,0.15949559,2273.8,2272.8,0.2203]
[1770171037787,0.15949559,2273.8,2272.5,5.36438079]
[1770171037991,0.15949559,2273.8,2272.5,7.98014572]
[1770171038190,0.15949559,2273.8,2272.6,4.20761785]
[1770171039484,0.15949559,2273.8,2272.8,0.10007507]
[1770171039689,0.15949559,2273.8,2272.9,0.10007507]
[1770171039888,0.15949559,2273.8,2272.9,0.32036507]
[1770171042392,0.15949559,2273.8,2272.9,0.22029]
[1770171043795,0.15949559,2273.8,2272.6,6.92467908]
[1770171044090,0.15949559,2273.8,2272.6,6.82467506]
[1770171044291,0.15949559,2273.5,2272.4,0.00390199]
[1770171044997,0.15949559,2273.4,2272.4,0.00390199]
[1770171045191,0.15949559,2273.3,2272.4,0.00390199]
[1770171048203,0.15949559,2273.2,2272.0,0.86]
[1770171048602,0.15949559,2273.2,2271.8,2.71347201]
[1770171049097,0.15949559,2273.2,2271.8,4.31104646]
[1770171049303,0.37977559,2273.1,2271.8,0.00401335]
[1770171049503,0.15949559,2273.0,2271.8,0.00401335]
[1770171050299,0.37978559,2273.0,2271.8,0.00401335]
[1770171050599,0.15949559,2272.9,2271.8,0.00401335]
[1770171050807,0.1551204,2272.7,2271.8,0.00401335]
[1770171050996,0.1551204,2272.5,2271.2,2.61576493]
[1770171051201,0.1551204,2272.5,2271.3,0.09249231]
[1770171051400,0.1551204,2272.5,2271.4,0.09249231]